fUSD/lending_fUSD_20240119
["ID","MTS","AMOUNT","RATE_DAILY","PERIOD"]
[312134195,1705666275447,-500.0,0.00023271,2]
[312134196,1705666275458,-509.06941736,0.00023271,2]
[312134197,1705666275469,-500.0,0.00023271,2]
[312134198,1705666275480,-500.0,0.00023271,2]
[312134199,1705666275492,-500.0,0.00023271,2]
[312134200,1705666275504,-500.0,0.00023271,2]
[312134201,1705666275516,-500.0,0.00023271,2]
[312134202,1705666275622,-639.73,0.00023271,2]
[312134203,1705666275634,-1003.11,0.00023271,2]
[312134204,1705666275645,-500.0,0.00023271,2]
[312134205,1705666275656,-500.0,0.00023271,2]
[312134206,1705666275667,-500.0,0.00023271,2]
[312134207,1705666275678,-500.0,0.00023271,2]
[312134208,1705666275690,-500.0,0.00023271,2]
[312134209,1705666275701,-545.05786948,0.00023271,2]
[312134210,1705666275712,-500.0,0.00023271,2]
[312134211,1705666275724,-500.0,0.00023271,2]
[312134212,1705666275735,-500.0,0.00023271,2]
[312134213,1705666275747,-500.0,0.00023271,2]
[312134214,1705666275759,-500.0,0.00023271,2]
[312134215,1705666275773,-500.0,0.00023271,2]
[312134216,1705666275784,-500.0,0.00023271,2]
[312134217,1705666275796,-500.0,0.00023271,2]
[312134218,1705666275807,-500.0,0.00023271,2]
[312134219,1705666275819,-500.0,0.00023271,2]
[312134220,1705666275830,-500.0,0.00023271,2]
[312134221,1705666275841,-500.0,0.00023271,2]
[312134222,1705666275853,-500.0,0.00023271,2]
[312134223,1705666275865,-500.0,0.00023271,2]
[312134224,1705666275876,-500.0,0.00023271,2]
[312134225,1705666275889,-500.0,0.00023271,2]
[312134226,1705666275900,-520.06,0.00023271,2]
[312134227,1705666275912,-522.38,0.00023271,2]
[312134228,1705666275924,-951.95,0.00023271,2]
[312134229,1705666275935,-500.0,0.00023271,2]
[312134230,1705666275947,-500.0,0.00023271,2]
[312134231,1705666275959,-500.0,0.00023271,2]
[312134232,1705666275970,-500.0,0.00023271,2]
[312134233,1705666275983,-507.76976183,0.00023271,2]
[312134234,1705666275994,-503.1701915,0.00023271,2]
[312134235,1705666276006,-500.0,0.00023271,2]
[312134236,1705666276017,-500.0,0.00023271,2]
[312134237,1705666276029,-500.0,0.00023271,2]
[312134238,1705666276040,-277.03221641,0.00023271,2]
[312134239,1705666276052,-500.0,0.00023271,2]
[312134240,1705666276063,-500.0,0.00023271,2]
[312134241,1705666276075,-500.0,0.00023271,2]
[312134242,1705666276086,-500.0,0.00023271,2]
[312134243,1705666276098,-500.0,0.00023271,2]
[312134244,1705666276110,-500.0,0.00023271,2]
[312134245,1705666276122,-500.0,0.00023271,2]
[312134246,1705666276134,-1016.97,0.00023271,2]
[312134247,1705666276146,-500.0,0.00023271,2]
[312134248,1705666276157,-500.0,0.00023271,2]
[312134249,1705666276168,-500.0,0.00023271,2]
[312134250,1705666276180,-500.0,0.00023271,2]
[312134251,1705666276191,-500.0,0.00023271,2]
[312134252,1705666276203,-500.0,0.00023271,2]
[312134253,1705666276214,-500.0,0.00023271,2]
[312134254,1705666276225,-500.0,0.00023271,2]
[312134255,1705666276238,-500.0,0.00023271,2]
[312134256,1705666276250,-500.0,0.00023271,2]
[312134257,1705666276262,-500.0,0.00023271,2]
[312134258,1705666276274,-500.0,0.00023271,2]
[312134259,1705666276286,-500.0,0.00023271,2]
[312134260,1705666276298,-500.0,0.00023271,2]
[312134261,1705666276311,-742.91,0.00023271,2]
[312134262,1705666276323,-500.0,0.00023271,2]
[312134263,1705666276336,-194.16723898,0.00023271,2]
[312134264,1705666276348,-500.0,0.00023271,2]
[312134265,1705666276359,-500.0,0.00023271,2]
[312134266,1705666276370,-500.0,0.00023271,2]
[312134267,1705666276382,-514.98457529,0.00023271,2]
[312134268,1705666276396,-500.0,0.00023271,2]
[312134269,1705666276407,-500.0,0.00023271,2]
[312134270,1705666276419,-625.1,0.00023271,2]
[312134271,1705666276430,-500.0,0.00023271,2]
[312134272,1705666276441,-503.88950271,0.00023271,2]
[312134273,1705666276452,-500.0,0.00023271,2]
[312134274,1705666276464,-500.0,0.00023271,2]
[312134275,1705666276477,-500.0,0.00023271,2]
[312134276,1705666276489,-538.32,0.00023271,2]
[312134277,1705666276733,-500.0,0.00023271,2]
[312134278,1705666276745,-500.0,0.00023271,2]
[312134279,1705666276757,-536.45,0.00023271,2]
[312134280,1705666276771,-661.07,0.00023271,2]
[312134281,1705666276783,-491.66986429,0.00023271,2]
[312134282,1705666276795,-500.0,0.00023271,2]
[312134283,1705666276807,-500.0,0.00023271,2]
[312134284,1705666276821,-500.0,0.00023271,2]
[312134285,1705666276833,-500.0,0.00023271,2]
[312134286,1705666276845,-639.72575383,0.00023271,2]
[312134287,1705666276859,-501.35,0.00023271,2]
[312134288,1705666276872,-500.0,0.00023271,2]
[312134289,1705666276885,-181.26843171,0.00023271,2]
[312134290,1705666276896,-500.0,0.00023271,2]
[312134291,1705666276908,-500.0,0.00023271,2]
[312134292,1705666276919,-500.0,0.00023271,2]
[312134293,1705666276932,-500.0,0.00023271,2]
[312134294,1705666276945,-505.27,0.00023271,2]
[312134295,1705666276958,-500.0,0.00023271,2]
[312134296,1705666276970,-500.0,0.00023271,2]
[312134297,1705666276984,-211.05736824,0.00023271,2]
[312134298,1705666276996,-521.5700484,0.00023271,2]
[312134299,1705666277009,-1361.89,0.00023271,2]
[312134300,1705666277021,-506.32111843,0.00023271,2]
[312134301,1705666277033,-500.0,0.00023271,2]
[312134302,1705666277046,-500.0,0.00023271,2]
[312134303,1705666277059,-500.0,0.00023271,2]
[312134304,1705666277071,-500.0,0.00023271,2]
[312134305,1705666277083,-930.39,0.00023271,2]
[312134306,1705666277096,-500.0,0.00023271,2]
[312134307,1705666277108,-500.0,0.00023271,2]
[312134308,1705666277120,-500.0,0.00023271,2]
[312134309,1705666277133,-500.0,0.00023271,2]
[312134310,1705666277147,-500.0,0.00023271,2]
[312134311,1705666277159,-500.0,0.00023271,2]
[312134312,1705666277171,-500.0,0.00023271,2]
[312134313,1705666277183,-500.0,0.00023271,2]
[312134314,1705666277195,-987.25,0.00023271,2]
[312134315,1705666277207,-500.0,0.00023271,2]
[312134316,1705666277219,-500.0,0.00023271,2]
[312134317,1705666277231,-500.0,0.00023271,2]
[312134318,1705666277246,-500.0,0.00023271,2]
[312134319,1705666277257,-500.0,0.00023271,2]
[312134320,1705666277269,-500.0,0.00023271,2]
[312134321,1705666277282,-500.0,0.00023271,2]
[312134322,1705666277294,-500.0,0.00023271,2]
[312134323,1705666277306,-500.0,0.00023271,2]
[312134324,1705666277318,-500.0,0.00023271,2]
[312134325,1705666277330,-804.04,0.00023271,2]
[312134326,1705666277343,-500.0,0.00023271,2]
[312134327,1705666277355,-500.0,0.00023271,2]
[312134328,1705666277367,-834.1,0.00023271,2]
[312134329,1705666277380,-500.0,0.00023271,2]
[312134330,1705666277393,-530.68,0.00023271,2]
[312134331,1705666277405,-500.0,0.00023271,2]
[312134332,1705666277417,-500.0,0.00023271,2]
[312134333,1705666277430,-2493.17,0.00023271,2]
[312134334,1705666277443,-500.0,0.00023271,2]
[312134335,1705666277456,-882.8,0.00023271,2]
[312134336,1705666277468,-573.74,0.00023271,2]
[312134337,1705666277480,-500.0,0.00023271,2]
[312134338,1705666277491,-500.0,0.00023271,2]
[312134339,1705666277504,-615.64,0.00023271,2]
[312134340,1705666277516,-674.04,0.00023271,2]
[312134341,1705666277527,-507.26235431,0.00023271,2]
[312134342,1705666277539,-500.0,0.00023271,2]
[312134343,1705666277550,-500.0,0.00023271,2]
[312134344,1705666277563,-500.0,0.00023271,2]
[312134345,1705666277575,-500.0,0.00023271,2]
[312134346,1705666277588,-1047.1,0.00023271,2]
[312134347,1705666277600,-500.0,0.00023271,2]
[312134348,1705666277612,-500.0,0.00023271,2]
[312134349,1705666277625,-500.0,0.00023271,2]
[312134350,1705666277637,-511.71408259,0.00023271,2]
[312134351,1705666277649,-500.0,0.00023271,2]
[312134352,1705666277660,-500.0,0.00023271,2]
[312134353,1705666277672,-830.43,0.00023271,2]
[312134354,1705666277684,-500.0,0.00023271,2]
[312134355,1705666277696,-500.0,0.00023271,2]
[312134356,1705666277708,-500.0,0.00023271,2]
[312134357,1705666277719,-500.0,0.00023271,2]
[312134358,1705666277731,-500.0,0.00023271,2]
[312134359,1705666277742,-500.0,0.00023271,2]
[312134360,1705666277755,-500.0,0.00023271,2]
[312134361,1705666277766,-500.0,0.00023271,2]
[312134362,1705666277778,-500.0,0.00023271,2]
[312134363,1705666277791,-500.0,0.00023271,2]
[312134364,1705666277805,-634.94,0.00023271,2]
[312134365,1705666277817,-500.0,0.00023271,2]
[312134366,1705666277828,-500.0,0.00023271,2]
[312134367,1705666277841,-833.55,0.00023271,2]
[312134368,1705666277854,-816.25,0.00023271,2]
[312134369,1705666277866,-500.0,0.00023271,2]
[312134370,1705666277877,-500.0,0.00023271,2]
[312134371,1705666277890,-500.0,0.00023271,2]
[312134372,1705666277902,-793.96,0.00023271,2]
[312134373,1705666277914,-500.0,0.00023271,2]
[312134374,1705666277925,-500.0,0.00023271,2]
[312134375,1705666277937,-500.0,0.00023271,2]
[312134376,1705666277950,-500.0,0.00023271,2]
[312134377,1705666277962,-500.0,0.00023271,2]
[312134378,1705666277973,-500.0,0.00023271,2]
[312134379,1705666277986,-500.0,0.00023271,2]
[312134380,1705666277997,-500.0,0.00023271,2]
[312134381,1705666278008,-500.0,0.00023271,2]
[312134382,1705666278020,-500.0,0.00023271,2]
[312134383,1705666278032,-680.83,0.00023271,2]
[312134384,1705666278043,-500.0,0.00023271,2]
[312134385,1705666278057,-500.0,0.00023271,2]
[312134386,1705666278068,-1052.77,0.00023271,2]
[312134387,1705666278080,-500.0,0.00023271,2]
[312134388,1705666278091,-500.0,0.00023271,2]
[312134389,1705666278102,-500.0,0.00023271,2]
[312134390,1705666278114,-959.44,0.00023271,2]
[312134391,1705666278126,-500.0,0.00023271,2]
[312134392,1705666278138,-500.0,0.00023271,2]
[312134393,1705666278150,-500.0,0.00023271,2]
[312134394,1705666278162,-1805.01,0.00023271,2]
[312134395,1705666278174,-500.0,0.00023271,2]
[312134396,1705666278186,-500.0,0.00023271,2]
[312134397,1705666278197,-500.0,0.00023271,2]
[312134398,1705666278209,-501.22645968,0.00023271,2]
[312134399,1705666278221,-500.0,0.00023271,2]
[312134400,1705666278232,-2839.77,0.00023271,2]
[312134401,1705666278243,-790.25,0.00023271,2]
[312134402,1705666278255,-500.0,0.00023271,2]
[312134403,1705666278267,-521.07863289,0.00023271,2]
[312134404,1705666278278,-520.62,0.00023271,2]
[312134405,1705666278290,-500.0,0.00023271,2]
[312134406,1705666278301,-4249.75,0.00023271,2]
[312134407,1705666278313,-3411.47,0.00023271,2]
[312134408,1705666278324,-500.0,0.00023271,2]
[312134409,1705666278335,-500.0,0.00023271,2]
[312134410,1705666278347,-500.0,0.00023271,2]
[312134411,1705666278359,-2837.35,0.00023271,2]
[312134412,1705666278372,-500.0,0.00023271,2]
[312134413,1705666278383,-5228.14,0.00023271,2]
[312134414,1705666278396,-931.26,0.00023271,2]
[312134415,1705666278408,-500.0,0.00023271,2]
[312134416,1705666278420,-500.0,0.00023271,2]
[312134417,1705666278432,-500.0,0.00023271,2]
[312134418,1705666278445,-1306.88,0.00023271,5]
[312134419,1705666278457,-500.0,0.00023271,2]
[312134420,1705666278469,-1111.12,0.00023271,2]
[312134421,1705666278481,-4809.82,0.00023271,2]
[312134422,1705666278493,-629.42,0.00023271,2]
[312134423,1705666278504,-503.78968227,0.00023271,2]
[312134424,1705666278516,-500.0,0.00023271,2]
[312134425,1705666278527,-5302.03,0.00023271,2]
[312134426,1705666278538,-500.0,0.00023271,2]
[312134427,1705666278551,-500.0,0.00023271,2]
[312134428,1705666278563,-500.0,0.00023271,2]
[312134429,1705666278575,-500.0,0.00023271,2]
[312134430,1705666278586,-378.5239585,0.00023271,2]
[312134431,1705666278598,-500.0,0.00023271,2]
[312134432,1705666278609,-548.62,0.00023271,2]
[312134433,1705666278621,-500.0,0.00023271,2]
[312134434,1705666278632,-500.0,0.00023271,2]
[312134435,1705666278644,-500.0,0.00023271,2]
[312134436,1705666278656,-500.0,0.00023271,2]
[312134437,1705666278668,-886.28,0.00023271,2]
[312134438,1705666278679,-538.93864756,0.00023271,2]
[312134439,1705666278691,-500.0,0.00023271,2]
[312134440,1705666278703,-877.94,0.00023271,2]
[312134441,1705666278714,-500.0,0.00023271,2]
[312134442,1705666278726,-724.04,0.00023271,2]
[312134443,1705666278738,-596.58,0.00023271,2]
[312134444,1705666278751,-3371.7,0.00023271,2]
[312134445,1705666278763,-500.0,0.00023271,2]
[312134446,1705666278779,-500.0,0.00023271,2]
[312134447,1705666278791,-500.0,0.00023271,2]
[312134448,1705666278803,-500.0,0.00023271,2]
[312134449,1705666278816,-4400.66,0.00023271,2]
[312134450,1705666278827,-500.0,0.00023271,2]
[312134451,1705666278839,-988.81,0.00023271,2]
[312134452,1705666278850,-500.0,0.00023271,2]
[312134453,1705666278864,-827.84,0.00023271,2]
[312134454,1705666278877,-669.84,0.00023271,2]
[312134455,1705666278889,-500.0,0.00023271,2]
[312134456,1705666278901,-500.0,0.00023271,2]
[312134457,1705666278912,-300.0,0.00023271,2]
[312134458,1705666278924,-558.63,0.00023271,2]
[312134459,1705666278935,-2045.96,0.00023271,2]
[312134460,1705666278947,-3996.45,0.00023271,2]
[312134461,1705666278958,-500.0,0.00023271,2]
[312134462,1705666278969,-500.0,0.00023271,2]
[312134463,1705666278982,-500.0,0.00023271,2]
[312134464,1705666278994,-612.06,0.00023271,2]
[312134465,1705666279005,-500.0,0.00023271,2]
[312134466,1705666279016,-500.0,0.00023271,2]
[312134467,1705666279029,-2049.86,0.00023271,2]
[312134468,1705666279040,-513.52496562,0.00023271,2]
[312134469,1705666279052,-868.63,0.00023271,2]
[312134470,1705666279064,-500.0,0.00023271,2]
[312134471,1705666279077,-591.26,0.00023271,2]
[312134472,1705666279088,-1069.62,0.00023271,2]
[312134473,1705666279100,-500.0,0.00023271,2]
[312134474,1705666279111,-500.0,0.00023271,2]
[312134475,1705666279123,-500.0,0.00023271,2]
[312134476,1705666279134,-500.0,0.00023271,2]
[312134477,1705666279148,-2549.06,0.00023271,2]
[312134478,1705666279159,-500.0,0.00023271,2]
[312134479,1705666279170,-500.0,0.00023271,2]
[312134480,1705666279181,-500.0,0.00023271,2]
[312134481,1705666279193,-587.35,0.00023271,2]
[312134482,1705666279205,-1768.63,0.00023271,2]
[312134483,1705666279217,-500.0,0.00023271,2]
[312134484,1705666279230,-500.0,0.00023271,2]
[312134485,1705666279241,-500.0,0.00023271,2]
[312134486,1705666279253,-500.0,0.00023271,2]
[312134487,1705666279265,-500.0,0.00023271,2]
[312134488,1705666279277,-1408.95,0.00023271,2]
[312134489,1705666279289,-500.0,0.00023271,2]
[312134490,1705666279301,-421.20387186,0.00023271,2]
[312134491,1705666279312,-3266.27,0.00023271,2]
[312134492,1705666279324,-500.0,0.00023271,2]
[312134493,1705666279336,-500.0,0.00023271,2]
[312134494,1705666279347,-500.0,0.00023271,2]
[312134495,1705666279358,-500.0,0.00023271,2]
[312134496,1705666279370,-1854.3,0.00023271,2]
[312134497,1705666279382,-507.32469254,0.00023271,2]
[312134498,1705666279394,-500.0,0.00023271,2]
[312134499,1705666279405,-500.0,0.00023271,2]
[312134500,1705666279416,-500.0,0.00023271,2]
[312134501,1705666279427,-638.39,0.00023271,2]
[312134502,1705666279440,-1678.82,0.00023271,2]
[312134503,1705666279451,-614.16,0.00023271,2]
[312134504,1705666279463,-500.0,0.00023271,2]
[312134505,1705666279475,-854.41,0.00023271,2]
[312134506,1705666279487,-964.22,0.00023271,2]
[312134507,1705666279498,-1518.27,0.00023271,2]
[312134508,1705666279510,-500.0,0.00023271,2]
[312134509,1705666279522,-2179.92,0.00023271,2]
[312134510,1705666279534,-500.0,0.00023271,2]
[312134511,1705666279545,-500.0,0.00023272,2]
[312134512,1705666279556,-500.0,0.00023272,2]
[312134513,1705666279568,-588.64,0.00023272,2]
[312134514,1705666279581,-500.0,0.00023272,2]
[312134515,1705666279592,-500.0,0.00023272,2]
[312134516,1705666279604,-500.0,0.00023272,2]
[312134517,1705666279616,-609.91,0.00023272,2]
[312134518,1705666279627,-500.0,0.00023272,2]
[312134519,1705666279638,-500.0,0.00023272,2]
[312134520,1705666279650,-500.0,0.00023272,2]
[312134521,1705666279661,-500.0,0.00023272,2]
[312134522,1705666279672,-500.0,0.00023272,2]
[312134523,1705666279685,-504.13279528,0.00023272,2]
[312134524,1705666279793,-500.0,0.00023272,2]
[312134525,1705666279805,-500.0,0.00023272,2]
[312134526,1705666279817,-1000.0,0.00023272,2]
[312134527,1705666279829,-500.0,0.00023272,2]
[312134528,1705666279841,-500.0,0.00023272,2]
[312134529,1705666279853,-607.72,0.00023272,2]
[312134530,1705666279865,-520.31514069,0.00023272,2]
[312134531,1705666279876,-500.0,0.00023272,2]
[312134532,1705666279888,-500.0,0.00023272,2]
[312134533,1705666279900,-500.0,0.00023272,2]
[312134534,1705666279911,-604.29,0.00023272,2]
[312134535,1705666279923,-767.29,0.00023272,2]
[312134536,1705666279934,-573.87,0.00023272,2]
[312134537,1705666279946,-500.0,0.00023272,2]
[312134538,1705666279957,-500.0,0.00023272,2]
[312134539,1705666279969,-500.0,0.00023272,2]
[312134540,1705666279981,-500.0,0.00023272,2]
[312134541,1705666279993,-828.77,0.00023272,2]
[312134542,1705666280005,-500.0,0.00023272,2]
[312134543,1705666280017,-500.0,0.00023272,2]
[312134544,1705666280028,-175.18001163,0.00023272,2]
[312134545,1705666280040,-500.0,0.00023272,2]
[312134546,1705666280051,-500.0,0.00023272,2]
[312134547,1705666280062,-500.0,0.00023272,2]
[312134548,1705666280073,-500.0,0.00023272,2]
[312134549,1705666280083,-500.0,0.00023272,2]
[312134550,1705666280095,-500.0,0.00023272,2]
[312134551,1705666280106,-500.0,0.00023272,2]
[312134552,1705666280117,-572.89,0.00023272,2]
[312134553,1705666280128,-508.59655786,0.00023272,2]
[312134554,1705666280138,-500.0,0.00023272,2]
[312134555,1705666280150,-185.60293391,0.00023272,2]
[312134556,1705666280161,-507.19951061,0.00023272,2]
[312134557,1705666280172,-500.0,0.00023272,2]
[312134558,1705666280184,-662.42,0.00023272,2]
[312134559,1705666280195,-509.24671451,0.00023272,2]
[312134560,1705666280207,-500.0,0.00023272,2]
[312134561,1705666280218,-500.0,0.00023272,2]
[312134562,1705666280229,-500.0,0.00023272,2]
[312134563,1705666280240,-500.0,0.00023272,2]
[312134564,1705666280250,-692.21,0.00023272,2]
[312134565,1705666280262,-500.0,0.00023272,2]
[312134566,1705666280273,-500.0,0.00023272,2]
[312134567,1705666280284,-500.0,0.00023272,2]
[312134568,1705666280296,-505.94,0.00023272,2]
[312134569,1705666280308,-700.62,0.00023272,2]
[312134570,1705666280319,-843.53,0.00023272,2]
[312134571,1705666280330,-500.0,0.00023272,2]
[312134572,1705666280341,-500.0,0.00023272,2]
[312134573,1705666280352,-500.0,0.00023272,2]
[312134574,1705666280363,-500.0,0.00023272,2]
[312134575,1705666280373,-500.0,0.00023272,2]
[312134576,1705666280386,-500.0,0.00023272,2]
[312134577,1705666280398,-561.36,0.00023272,2]
[312134578,1705666280408,-500.0,0.00023272,2]
[312134579,1705666280419,-620.37,0.00023272,2]
[312134580,1705666280430,-500.0,0.00023272,2]
[312134581,1705666280440,-500.0,0.00023272,2]
[312134582,1705666280452,-500.0,0.00023272,2]
[312134583,1705666280463,-690.35,0.00023272,2]
[312134584,1705666280474,-500.0,0.00023272,2]
[312134585,1705666280495,-500.0,0.00023272,2]
[312134586,1705666280507,-500.0,0.00023272,2]
[312134587,1705666280518,-659.08,0.00023272,2]
[312134588,1705666280528,-500.0,0.00023272,2]
[312134589,1705666280540,-500.0,0.00023272,2]
[312134590,1705666280552,-924.43,0.00023272,2]
[312134591,1705666280562,-500.0,0.00023272,2]
[312134592,1705666280574,-500.0,0.00023272,2]
[312134593,1705666280585,-500.0,0.00023272,2]
[312134594,1705666280597,-500.0,0.00023272,2]
[312134595,1705666280609,-1191.14,0.00023272,2]
[312134596,1705666280621,-500.0,0.00023272,2]
[312134597,1705666280632,-730.5,0.00023272,2]
[312134598,1705666280643,-500.0,0.00023272,2]
[312134599,1705666280654,-557.03,0.00023272,2]
[312134600,1705666280665,-664.98,0.00023272,2]
[312134601,1705666280676,-1551.61,0.00023272,2]
[312134602,1705666280687,-500.0,0.00023272,2]
[312134603,1705666280700,-500.0,0.00023272,2]
[312134604,1705666280711,-500.0,0.00023272,2]
[312134605,1705666280722,-327.84014947,0.00023272,2]
[312134606,1705666280733,-500.0,0.00023272,2]
[312134607,1705666280744,-1101.59,0.00023272,2]
[312134608,1705666280755,-500.0,0.00023272,2]
[312134609,1705666280767,-500.0,0.00023272,2]
[312134610,1705666280781,-500.0,0.00023272,2]
[312134611,1705666280793,-500.0,0.00023272,2]
[312134612,1705666280805,-629.68,0.00023272,2]
[312134613,1705666280818,-500.0,0.00023272,2]
[312134614,1705666280829,-527.60900771,0.00023272,2]
[312134615,1705666280841,-500.0,0.00023272,2]
[312134616,1705666280855,-738.94,0.00023272,2]
[312134617,1705666280866,-500.0,0.00023272,2]
[312134618,1705666280878,-500.0,0.00023272,2]
[312134619,1705666280890,-500.0,0.00023272,2]
[312134620,1705666280902,-500.0,0.00023272,2]
[312134621,1705666280913,-810.12,0.00023272,2]
[312134622,1705666280923,-537.48,0.00023272,2]
[312134623,1705666280934,-500.0,0.00023272,2]
[312134624,1705666280945,-500.0,0.00023272,2]
[312134625,1705666280957,-526.16,0.00023272,2]
[312134626,1705666280968,-500.0,0.00023272,2]
[312134627,1705666280980,-603.09,0.00023272,2]
[312134628,1705666280991,-1028.88,0.00023272,2]
[312134629,1705666281004,-500.0,0.00023272,2]
[312134630,1705666281014,-500.0,0.00023272,2]
[312134631,1705666281026,-500.0,0.00023272,2]
[312134632,1705666281038,-500.0,0.00023272,2]
[312134633,1705666281049,-953.72,0.00023272,2]
[312134634,1705666281061,-500.0,0.00023272,2]
[312134635,1705666281073,-711.06,0.00023272,2]
[312134636,1705666281084,-502.65856898,0.00023272,2]
[312134637,1705666281096,-500.0,0.00023272,2]
[312134638,1705666281109,-500.0,0.00023272,2]
[312134639,1705666281120,-1427.07,0.00023272,2]
[312134640,1705666281131,-618.44,0.00023272,2]
[312134641,1705666281142,-1731.93,0.00023272,2]
[312134642,1705666281153,-500.0,0.00023272,2]
[312134643,1705666281165,-747.42,0.00023272,2]
[312134644,1705666281176,-500.0,0.00023272,2]
[312134645,1705666281187,-500.0,0.00023272,2]
[312134646,1705666281199,-500.0,0.00023272,2]
[312134647,1705666281212,-500.0,0.00023272,2]
[312134648,1705666281223,-500.0,0.00023272,2]
[312134649,1705666281234,-500.0,0.00023272,2]
[312134650,1705666281246,-638.91,0.00023272,2]
[312134651,1705666281257,-500.0,0.00023272,2]
[312134652,1705666281269,-500.0,0.00023272,2]
[312134653,1705666281280,-500.0,0.00023272,2]
[312134654,1705666281291,-500.0,0.00023272,2]
[312134655,1705666281302,-587.67,0.00023272,2]
[312134656,1705666281313,-500.0,0.00023272,2]
[312134657,1705666281324,-500.0,0.00023272,2]
[312134658,1705666281336,-500.0,0.00023272,2]
[312134659,1705666281348,-500.0,0.00023272,2]
[312134660,1705666281360,-500.0,0.00023272,2]
[312134661,1705666281372,-556.3,0.00023272,2]
[312134662,1705666281383,-500.0,0.00023272,2]
[312134663,1705666281396,-501.54993582,0.00023272,2]
[312134664,1705666281410,-500.0,0.00023272,2]
[312134665,1705666281423,-500.0,0.00023272,2]
[312134666,1705666281434,-1190.14,0.00023272,2]
[312134667,1705666281446,-500.0,0.00023272,2]
[312134668,1705666281458,-500.0,0.00023272,2]
[312134669,1705666281470,-500.0,0.00023272,2]
[312134670,1705666281482,-500.0,0.00023272,2]
[312134671,1705666281494,-500.0,0.00023272,2]
[312134672,1705666281506,-500.0,0.00023272,2]
[312134673,1705666281518,-500.0,0.00023272,2]
[312134674,1705666281530,-653.45,0.00023272,2]
[312134675,1705666281542,-565.86,0.00023272,2]
[312134676,1705666281554,-500.0,0.00023272,2]
[312134677,1705666281566,-500.0,0.00023272,2]
[312134678,1705666281577,-500.0,0.00023272,2]
[312134679,1705666281589,-594.53,0.00023272,2]
[312134680,1705666281600,-500.0,0.00023272,2]
[312134681,1705666281612,-500.0,0.00023272,2]
[312134682,1705666281623,-500.0,0.00023272,2]
[312134683,1705666281635,-500.0,0.00023272,2]
[312134684,1705666281647,-730.94,0.00023272,2]
[312134685,1705666281658,-500.0,0.00023272,2]
[312134686,1705666281671,-500.0,0.00023272,2]
[312134687,1705666281682,-247.5009234,0.00023273,2]
[312134688,1705666281694,-508.79766234,0.00023273,2]
[312134689,1705666281705,-500.0,0.00023273,2]
[312134690,1705666281717,-500.0,0.00023273,2]
[312134691,1705666281729,-639.61966802,0.00023273,2]
[312134692,1705666281741,-500.0,0.00023273,2]
[312134693,1705666281753,-500.0,0.00023273,2]
[312134694,1705666281764,-505.68649104,0.00023273,2]